bitfinex-derivatives/quotes_SOLF0:USTF0_20250903
["timestamp","ask_amount","ask_price","bid_price","bid_amount"]
[1756940582281,9.37317764,209.74,209.7,7.42]
[1756940582479,1.60317764,209.74,209.7,7.42]
[1756940582784,7.77,209.73,209.7,7.42]
[1756940582983,1.60317764,209.74,209.69,107.43030131]
[1756940583477,9.37317764,209.74,209.7,7.42]
[1756940583682,1.60317764,209.74,209.7,7.42]
[1756940583885,7.77,209.73,209.7,7.42]
[1756940584078,0.03389087,209.74,209.7,8.98928677]
[1756940584284,0.03389087,209.74,209.73,7.42]
[1756940589886,0.03389087,209.74,209.7,7.42]
[1756940590090,9.37317764,209.74,209.69,107.43030131]
[1756940590592,7.77,209.73,209.7,7.42]
[1756940590793,1.60317764,209.74,209.7,7.42]
[1756940591591,1.60317764,209.74,209.69,107.43030131]
[1756940591791,1.60317764,209.74,209.7,7.42]
[1756940592094,1.60317764,209.74,209.7,7.27]
[1756940592495,1.60317764,209.74,209.69,107.43030131]
[1756940592689,1.60317764,209.74,209.7,7.27]
[1756940592889,1.60317764,209.74,209.69,107.43030131]
[1756940593584,8.85317764,209.74,209.7,7.27]
[1756940593788,8.85317764,209.74,209.69,107.43030131]
[1756940595292,0.03389087,209.74,209.7,7.27]
[1756940595997,0.03389087,209.74,209.7,8.83928677]
[1756940596196,0.03389087,209.74,209.7,1.56928677]
[1756940596695,0.03389087,209.74,209.71,7.27]
[1756940597095,0.03389087,209.74,209.7,1.56928677]
[1756940597292,0.03389087,209.74,209.71,7.27]
[1756940597490,0.03389087,209.74,209.69,107.43030131]
[1756940597801,8.85317764,209.74,209.7,7.27]
[1756940598199,1.60317764,209.74,209.69,107.43030131]
[1756940599096,1.60317764,209.74,209.7,7.27]
[1756940599292,1.60317764,209.74,209.69,107.43030131]
[1756940599798,1.60317764,209.74,209.7,7.27]
[1756940599998,1.60317764,209.74,209.69,107.43030131]
[1756940600194,1.60317764,209.74,209.7,7.27]
[1756940600798,8.85317764,209.74,209.7,7.27]
[1756940600998,7.25,209.73,209.7,7.27]
[1756940601198,7.25,209.73,209.69,107.43030131]
[1756940601903,7.25,209.73,209.69,114.70030131]
[1756940602397,7.25,209.73,209.7,7.27]
[1756940603695,1.60317764,209.74,209.69,107.43030131]
[1756940603901,1.60317764,209.74,209.7,7.27]
[1756940604194,7.25,209.73,209.7,7.27]
[1756940604903,1.60317764,209.74,209.69,107.43030131]
[1756940605502,1.60317764,209.74,209.7,7.27]
[1756940605702,1.60317764,209.74,209.69,107.43030131]
[1756940606006,1.60317764,209.74,209.7,7.27]
[1756940606202,1.60317764,209.74,209.69,107.43030131]
[1756940606398,0.03389087,209.74,209.7,7.27]
[1756940606803,0.03389087,209.74,209.69,107.43030131]
[1756940606998,0.03389087,209.74,209.7,7.27]
[1756940607202,0.03389087,209.74,209.69,107.43030131]
[1756940607504,0.03389087,209.74,209.7,7.27]
[1756940607708,0.03389087,209.74,209.69,107.43030131]
[1756940607915,0.03389087,209.74,209.7,7.27]
[1756940608101,0.03389087,209.74,209.69,107.43030131]
[1756940608296,0.03389087,209.74,209.7,7.27]
[1756940608708,0.03389087,209.74,209.69,107.43030131]
[1756940608904,0.03389087,209.74,209.7,7.27]
[1756940609704,0.03389087,209.74,209.69,107.43030131]
[1756940609902,0.03389087,209.74,209.7,7.27]
[1756940610105,0.03389087,209.74,209.69,107.43030131]
[1756940610299,0.03389087,209.74,209.7,7.27]
[1756940611109,0.03389087,209.74,209.69,107.43030131]
[1756940611302,0.03389087,209.74,209.7,7.27]
[1756940611497,0.03389087,209.74,209.69,107.43030131]
[1756940612009,0.03389087,209.74,209.7,7.27]
[1756940612205,0.03389087,209.74,209.69,107.43030131]
[1756940613203,0.03389087,209.74,209.7,7.27]
[1756940613401,0.03389087,209.74,209.69,107.43030131]
[1756940613708,0.03389087,209.74,209.7,7.27]
[1756940613909,0.03389087,209.74,209.69,107.43030131]
[1756940614804,0.03389087,209.74,209.7,7.27]
[1756940615208,0.03389087,209.74,209.69,107.43030131]
[1756940615507,0.03389087,209.74,209.7,7.27]
[1756940615804,0.03389087,209.74,209.69,107.43030131]
[1756940616003,0.03389087,209.74,209.7,7.27]
[1756940616608,2.45543323,209.83,209.7,2.45543323]
[1756940616808,2.45543323,209.83,209.71,7.27]
[1756940617907,2.45543323,209.83,209.73,7.27]
[1756940626716,7.25,209.84,209.75,7.32]
[1756940627113,13.27868826,209.88,209.76,4.289]
[1756940627312,7.92,209.88,209.77,7.32]
[1756940628007,7.92,209.88,209.78,4.2885]
[1756940628405,7.92,209.88,209.79,7.32]
[1756940630925,0.03529189,209.86,209.81,0.03330435]
[1756940631218,0.03529189,209.86,209.82,7.32]
[1756940632115,0.03529189,209.86,209.83,7.32]
[1756940634418,0.03529189,209.86,209.82,2.45543323]
[1756940635419,0.03529189,209.86,209.83,7.32]
[1756940635919,0.03529189,209.86,209.82,2.45543323]
[1756940636417,0.03529189,209.86,209.83,7.32]
[1756940636615,0.03529189,209.86,209.82,2.45543323]
[1756940637315,0.03529189,209.86,209.83,7.32]
[1756940637620,0.03529189,209.86,209.82,2.45543323]
[1756940638320,0.03529189,209.86,209.83,7.32]
[1756940638717,7.92,209.96,209.85,2.45543323]
[1756940639021,7.92,209.96,209.86,7.32]
[1756940639921,7.92,209.96,209.89,0.03433364]
[1756940640121,7.92,209.96,209.89,7.35433364]
[1756940641125,7.92,209.99,209.89,7.35433364]
[1756940641423,7.92,210.02,209.9,4.2861]
[1756940641623,7.92,210.02,209.91,7.32]
[1756940641823,47.99543323,210.04,209.9,4.2861]
[1756940642018,7.92,210.03,209.94,0.03123319]
[1756940642222,7.92,210.03,209.95,7.32]
[1756940644422,118.71543323,210.07,209.95,7.32]
[1756940644423,7.92,210.06,209.95,7.32]
[1756940645128,7.92,210.06,209.99,7.32]
[1756940646120,7.92,210.06,209.98,0.03534693]
[1756940646425,10.37543323,210.06,209.98,7.35534693]
[1756940647123,7.92,210.14,209.98,2.49078016]
[1756940647327,7.92,210.11,209.99,7.32]
[1756940647526,7.92,210.11,210.0,7.32]
[1756940647727,7.92,210.11,210.03,0.03443401]
[1756940649627,2.45543323,210.12,210.03,0.03443401]
[1756940649830,7.92,210.11,210.03,0.03443401]
[1756940650329,7.92,210.11,210.04,7.32]
[1756940652429,7.92,210.11,210.03,0.03443401]
[1756940652631,2.45543323,210.09,210.03,0.03443401]
[1756940653230,7.67,210.08,210.03,0.03443401]
[1756940653426,2.45543323,210.09,210.03,0.03443401]
[1756940653624,7.67,210.08,210.03,0.03443401]
[1756940653828,2.45543323,210.09,210.03,0.03443401]
[1756940654330,7.67,210.08,210.03,0.03443401]
[1756940657326,2.45543323,210.06,210.03,0.03443401]
[1756940658223,7.67,210.05,210.03,0.03443401]
[1756940658422,2.45543323,210.06,210.03,0.03443401]
[1756940658825,7.67,210.05,210.03,0.03443401]
[1756940659031,2.45543323,210.06,210.03,0.03443401]
[1756940659231,10.12543323,210.09,210.03,0.03443401]
[1756940659435,7.67,210.09,210.03,0.03443401]
[1756940659636,7.67,210.09,210.02,7.41]
[1756940659832,2.45543323,210.12,210.04,0.03559244]
[1756940660032,7.67,210.11,210.04,0.03559244]
[1756940663232,7.67,210.08,210.04,0.03559244]
[1756940663536,2.45543323,210.09,210.04,0.03559244]
[1756940664136,7.67,210.08,210.04,0.03559244]
[1756940664534,2.45543323,210.09,210.04,0.03559244]
[1756940664934,7.67,210.08,210.04,0.03559244]
[1756940665338,7.67,210.08,210.04,7.44559244]
[1756940667942,7.67,210.08,210.05,7.41]
[1756940668242,7.67,210.11,210.05,7.41]
[1756940672240,7.67,210.23,210.05,7.41]
[1756940672445,7.67,210.17,210.05,7.41]
[1756940672845,7.67,210.17,210.09,0.03247184]
[1756940675548,1.56561762,210.15,210.09,0.03247184]
[1756940676447,7.67,210.14,210.09,0.03247184]
[1756940676646,1.56561762,210.15,210.09,0.03247184]
[1756940677052,9.23561762,210.15,210.09,0.03247184]
[1756940677954,7.67,210.15,210.09,0.03247184]
[1756940678857,1.56561762,210.14,210.09,0.03247184]
[1756940679150,31.82,210.2,210.09,7.44247184]
[1756940679356,7.67,210.15,210.09,7.44247184]
[1756940681760,1.56561762,210.14,210.09,7.44247184]
[1756940681960,7.9,210.19,210.09,7.44247184]
[1756940682158,31.82,210.2,210.09,7.44247184]
[1756940682159,1.56561762,210.15,210.09,7.44247184]
[1756940682351,9.46561762,210.15,210.09,7.44247184]
[1756940683257,7.9,210.15,210.1,1.56561762]
[1756940683462,7.9,210.15,210.11,7.61]
[1756940684152,7.9,210.2,210.11,7.61]
[1756940684355,7.9,210.2,210.14,1.56561762]
[1756940684857,7.9,210.2,210.16,7.61]
[1756940685052,1.56561762,210.22,210.16,7.61]
[1756940685256,1.56561762,210.27,210.16,7.61]
[1756940685565,9.46561762,210.23,210.16,7.61]
[1756940686062,7.9,210.22,210.19,0.03146203]
[1756940686361,1.56561762,210.23,210.19,0.03146203]
[1756940686762,7.9,210.22,210.19,0.03146203]
[1756940687064,1.56561762,210.23,210.19,0.03146203]
[1756940687259,7.9,210.22,210.19,0.03146203]
[1756940687661,1.56561762,210.23,210.19,0.03146203]
[1756940687866,15.27868826,210.3,210.19,0.03146203]
[1756940688068,1.56561762,210.22,210.19,0.03146203]
[1756940688258,9.46561762,210.2,210.19,0.03146203]
[1756940691969,7.9,210.2,210.19,0.03146203]
[1756940694462,9.46561762,210.2,210.19,0.03146203]
[1756940696170,7.9,210.19,210.04,1.56561762]
[1756940696372,1.56561762,210.12,210.05,7.61]
[1756940699371,1.56561762,210.1,210.04,9.17561762]
[1756940700178,9.46561762,210.12,210.04,9.17561762]
[1756940701678,1.56561762,210.1,210.04,7.61]
[1756940702573,7.9,210.07,210.04,7.61]
[1756940704376,7.9,210.16,210.03,7.61]
[1756940704581,1.56561762,210.11,210.04,1.56561762]
[1756940704781,1.56561762,210.11,210.05,7.61]
[1756940705782,1.56561762,210.11,209.99,110.24720725]
[1756940705783,1.56561762,210.07,210.0,1.56561762]
[1756940705982,1.56561762,210.07,210.0,7.61]
[1756940706283,1.56561762,210.05,210.0,7.61]
[1756940706584,7.9,210.04,210.0,7.61]
[1756940706974,1.56561762,210.03,209.99,110.24720725]
[1756940707378,7.9,210.02,209.99,110.24720725]
[1756940708282,7.9,210.02,209.99,117.85720725]
[1756940709283,1.56561762,210.03,209.99,110.24720725]
[1756940709482,7.9,210.0,209.99,110.24720725]
[1756940709683,7.9,210.11,209.99,110.24720725]
[1756940709977,7.9,210.06,210.0,7.61]
[1756940710179,1.56561762,210.04,209.99,110.24720725]
[1756940710383,1.56561762,210.04,210.0,7.61]
[1756940711182,1.56561762,210.04,209.99,110.24720725]
[1756940711574,1.56561762,210.08,210.0,7.61]
[1756940712179,1.56561762,210.06,210.0,7.61]
[1756940713176,9.92,210.13,209.99,111.81282487]
[1756940713177,1.56561762,210.02,209.99,110.24720725]
[1756940713586,1.56561762,210.02,209.99,117.56720725]
[1756940713988,1.56561762,210.02,210.0,7.32]
[1756940714190,7.33,210.04,210.0,7.32]
[1756940714484,1.56561762,210.03,210.0,7.32]
[1756940715087,9.92,210.13,209.99,110.24720725]
[1756940715088,8.89561762,210.01,209.99,110.24720725]
[1756940715288,7.33,210.0,209.99,110.24720725]
[1756940716084,1.56561762,210.01,209.99,110.24720725]
[1756940721388,1.56561762,210.01,209.99,117.56720725]
[1756940722483,7.33,210.0,209.99,110.24720725]
[1756940724088,8.89561762,210.0,209.99,110.24720725]
[1756940724294,1.56561762,210.0,209.99,110.24720725]
[1756940724792,7.33,210.0,209.99,110.24720725]
[1756940724994,8.89561762,210.0,209.99,110.24720725]
[1756940726389,1.56561762,210.0,209.99,110.24720725]
[1756940727492,8.89561762,210.0,209.99,110.24720725]
[1756940728089,1.56561762,210.0,209.95,7.32]
[1756940728290,1.56561762,209.96,209.95,7.32]
[1756940732992,1.56561762,209.98,209.9,7.32]
[1756940733189,1.56561762,209.98,209.92,7.32]
[1756940736699,1.56561762,210.0,209.92,7.32]
[1756940737598,2.44998528,210.02,209.92,7.32]
[1756940740897,7.33,210.01,209.92,7.32]
[1756940742899,7.97,209.98,209.92,7.32]
[1756940743588,10.41998528,209.98,209.92,7.32]
[1756940748703,39.49,210.02,209.92,7.32]
[1756940751611,2.44998528,210.0,209.92,7.32]
[1756940751812,7.97,209.99,209.92,7.32]
[1756940756618,10.41998528,210.03,209.92,7.32]
[1756940756817,73.57998528,210.03,209.92,7.32]
[1756940757814,7.97,209.99,209.92,7.32]
[1756940759012,5.35868826,210.04,209.92,7.32]
[1756940759218,7.97,210.03,209.92,7.32]
[1756940759910,7.97,210.07,209.95,7.82]
[1756940760114,7.97,210.07,209.95,2.44998528]
[1756940760309,7.97,210.07,209.96,7.82]
[1756940762922,2.44998528,210.05,209.96,7.82]
[1756940763121,7.97,210.04,209.96,7.82]
[1756940779334,37.34,210.07,209.97,7.33]
[1756940779728,8.0,210.07,209.97,7.33]
[1756940779928,8.0,210.04,209.89,5.34521366]
[1756940780134,2.44998528,210.02,209.91,7.33]
[1756940780337,8.0,210.01,209.91,7.33]
[1756940780934,8.0,209.98,209.91,7.33]
[1756940784533,8.0,209.98,209.83,2.44998528]
[1756940784737,8.0,209.95,209.84,7.33]
[1756940787243,2.44998528,209.93,209.84,7.33]
[1756940787442,8.0,209.92,209.84,7.33]
[1756940797447,1.56931655,209.9,209.84,7.33]
[1756940798245,9.56931655,209.88,209.84,7.33]
[1756940798441,9.56931655,209.88,209.82,7.33]
[1756940802747,1.56931655,209.86,209.82,7.33]
[1756940802950,7.84,209.85,209.82,7.33]
[1756940803246,1.56931655,209.86,209.82,7.33]
[1756940803452,7.84,209.85,209.82,7.33]
[1756940805055,7.84,209.88,209.82,7.24]
[1756940806956,7.84,209.88,209.83,1.56931655]
[1756940807751,7.84,209.88,209.84,7.24]
[1756940807956,7.84,209.88,209.83,1.56931655]
[1756940808351,9.54,209.94,209.84,7.24]
[1756940808555,1.56931655,209.9,209.84,7.24]
[1756940808958,7.84,209.89,209.84,7.24]
[1756940809156,9.40931655,209.9,209.84,7.24]
[1756940810255,1.56931655,209.88,209.84,7.24]
[1756940810461,7.84,209.87,209.84,7.24]
[1756940811855,1.56931655,209.88,209.84,7.24]
[1756940812055,7.84,209.87,209.84,7.24]
[1756940812554,7.84,209.87,209.81,7.24]
[1756940814460,1.56931655,209.86,209.81,7.24]
[1756940814658,1.56931655,209.86,209.78,2.39878657]
[1756940814857,7.84,209.85,209.78,9.63878657]
[1756940816360,7.84,209.85,209.78,2.39878657]
[1756940816559,7.84,209.85,209.79,7.24]
[1756940817151,7.84,209.91,209.82,1.56931655]
[1756940817355,9.40931655,209.91,209.83,7.24]
[1756940820262,7.84,209.91,209.85,7.24]
[1756940829779,7.84,209.91,209.86,1.56931655]
[1756940830078,7.84,209.92,209.86,1.56931655]
[1756940830873,7.84,209.95,209.89,7.24]
[1756940831176,7.84,209.96,209.91,7.24]
[1756940831375,1.56931655,209.97,209.91,7.24]
[1756940831576,7.84,209.96,209.9,8.80931655]
[1756940834982,7.84,209.96,209.9,7.24]
[1756940835187,7.36,209.94,209.88,1.56931655]
[1756940835384,7.36,209.94,209.86,9.45931655]
[1756940835584,7.36,209.92,209.86,7.89]
[1756940839087,7.36,209.92,209.88,7.89]
[1756940839288,8.92931655,209.97,209.89,9.45931655]
[1756940839985,7.36,209.97,209.89,9.45931655]
[1756940840191,7.36,209.97,209.91,9.45931655]
[1756940840583,7.36,209.97,209.91,7.89]
[1756940840789,7.36,209.97,209.91,9.45931655]
[1756940840985,7.36,209.97,209.91,7.89]
[1756940841185,7.36,209.97,209.91,9.45931655]
[1756940843689,8.92931655,209.97,209.91,7.89]
[1756940847994,8.92931655,209.97,209.89,1.56931655]
[1756940848696,8.92931655,209.97,209.9,7.89]
[1756940849695,7.36,209.97,209.91,1.56931655]
[1756940849894,7.36,210.03,209.94,7.89]
[1756940850092,1.56931655,210.01,209.94,7.89]
[1756940850596,8.92931655,210.03,209.95,1.56931655]
[1756940851097,8.92931655,210.03,209.96,7.89]
[1756940853189,8.92931655,210.03,209.96,9.45931655]
[1756940853395,1.56931655,210.05,209.99,7.89]
[1756940855799,0.032646,210.04,209.99,7.89]
[1756940856094,7.392646,210.04,210.0,7.92117806]
[1756940856298,7.392646,210.04,210.01,7.89]
[1756940857199,0.032646,210.04,210.0,0.03117806]
[1756940857697,0.032646,210.04,210.01,7.89]
[1756940857897,0.032646,210.04,210.0,0.03117806]
[1756940858095,0.032646,210.04,210.01,7.89]
[1756940858296,0.032646,210.04,210.0,0.03117806]
[1756940858598,0.032646,210.04,210.01,7.89]
[1756940858798,0.032646,210.04,210.0,0.03117806]
[1756940859295,0.032646,210.04,210.01,7.89]
[1756940859500,0.032646,210.04,210.0,0.03117806]
[1756940859901,0.032646,210.04,210.01,7.89]
[1756940860204,0.032646,210.04,210.0,0.03117806]
[1756940860501,0.032646,210.04,210.01,7.89]
[1756940861002,0.032646,210.04,210.0,0.03117806]
[1756940861506,0.032646,210.04,210.01,7.89]
[1756940861805,0.032646,210.04,210.0,0.03117806]
[1756940862005,0.032646,210.04,210.01,7.95]
[1756940862206,0.032646,210.04,210.0,0.03117806]
[1756940862408,0.032646,210.04,210.01,7.95]
[1756940862904,0.032646,210.04,210.0,0.03117806]
[1756940863705,0.032646,210.04,210.01,7.95]
[1756940864198,0.032646,210.04,210.0,0.03117806]
[1756940864905,0.032646,210.04,210.01,7.95]
[1756940865102,0.032646,210.04,210.0,0.03117806]
[1756940865904,0.032646,210.04,210.01,7.95]
[1756940866103,0.032646,210.04,210.0,0.03117806]
[1756940866304,0.032646,210.04,210.01,7.95]
[1756940866609,7.682646,210.04,210.01,7.95]
[1756940866802,7.682646,210.04,210.0,0.03117806]
[1756940866803,7.65,210.03,210.0,7.98117806]
[1756940868705,0.032646,210.04,210.01,7.95]
[1756940869304,0.032646,210.04,210.0,0.03117806]
[1756940869807,0.032646,210.04,210.01,10.39794455]
[1756940870009,0.032646,210.04,210.02,7.95]
[1756940870609,0.032646,210.04,210.02,8.43]
[1756940872007,0.032646,210.04,210.03,2.44794455]
[1756940872211,0.032646,210.04,210.03,10.39794455]
[1756940872708,0.032646,210.04,210.03,7.95]
[1756940874315,24.82794455,210.15,210.03,7.95]
[1756940874316,30.03,210.15,210.03,8.43]
[1756940874511,30.03,210.15,210.05,7.95]
[1756940874719,7.65,210.15,210.05,7.95]
[1756940875519,7.65,210.15,210.08,0.03142918]
[1756940877019,10.09794455,210.15,210.08,0.03142918]
[1756940878818,2.44794455,210.09,210.08,0.03142918]
[1756940879018,10.09794455,210.09,210.08,0.03142918]
[1756940880723,10.09794455,210.09,209.98,7.95]
[1756940881018,62.6,210.1,209.98,7.95]
[1756940881019,7.65,210.05,209.98,7.95]
[1756940882022,7.65,210.09,209.98,7.95]
[1756940885818,10.09794455,210.09,209.98,7.95]
[1756940888627,7.65,210.09,209.98,7.95]
[1756940888821,7.65,210.09,209.99,2.44794455]
[1756940889028,7.65,210.09,210.0,7.95]
[1756940897834,7.80663281,210.14,210.0,7.95]
[1756940898033,7.69,210.13,210.03,7.89]
[1756940903234,7.69,210.1,210.0,7.89]
[1756940910139,2.44794455,210.08,210.0,7.89]
[1756940910342,7.69,210.07,209.96,7.89]
[1756940912041,13.04868826,210.1,209.99,7.89]
[1756940912440,7.69,210.1,209.99,7.89]
[1756940915245,41.46,210.14,210.05,2.44794455]
[1756940915246,5.35868826,210.14,210.05,2.44794455]
[1756940915540,7.69,210.15,210.06,7.89]
[1756940915942,7.69,210.15,210.09,7.89]
[1756940916344,0.03195776,210.13,210.08,0.03357655]
[1756940916846,0.03195776,210.13,210.09,7.89]
[1756940917144,0.03195776,210.13,210.08,0.03357655]
[1756940918138,0.03195776,210.13,210.09,7.89]
[1756940919442,0.03195776,210.13,210.09,1.56530833]
[1756940919637,0.03195776,210.13,210.1,7.89]
[1756940920138,7.72195776,210.13,210.1,7.89]
[1756940921948,0.03195776,210.13,210.08,1.59888488]
[1756940922149,7.23,210.12,210.08,0.03357655]
[1756940922353,7.23,210.12,210.08,7.64357655]
[1756940922646,7.23,210.12,210.08,0.03357655]
[1756940922843,7.23,210.12,210.08,7.64357655]
[1756940923148,7.23,210.12,210.09,7.61]
[1756940924542,0.03195776,210.13,210.09,7.61]
[1756940924749,0.03195776,210.13,210.12,7.61]
[1756940924950,7.23,210.26,210.12,7.61]
[1756940925145,1.56530833,210.25,210.18,7.61]
[1756940926150,1.56530833,210.25,210.19,0.03563816]
[1756940927944,7.23,210.26,210.19,1.60094649]
[1756940928248,7.23,210.26,210.19,0.03563816]
[1756940929951,1.56530833,210.25,210.19,0.03563816]
[1756940930749,7.23,210.24,210.19,0.03563816]
[1756940931151,1.56530833,210.25,210.19,0.03563816]
[1756940931346,7.23,210.24,210.19,0.03563816]
[1756940931551,1.56530833,210.25,210.19,0.03563816]
[1756940932145,7.23,210.24,210.19,0.03563816]
[1756940932346,1.56530833,210.25,210.19,0.03563816]
[1756940932653,7.23,210.29,210.19,0.03563816]
[1756940932852,8.79530833,210.25,210.19,0.03563816]
[1756940933051,7.23,210.25,210.19,0.03563816]
[1756940933252,8.79530833,210.25,210.19,0.03563816]
[1756940940663,7.23,210.25,210.19,0.03563816]
[1756940946263,8.79530833,210.25,210.19,0.03563816]
[1756940951173,1.42,210.3,210.19,0.03563816]
[1756940951174,7.23,210.2,210.19,0.03563816]
[1756940960989,7.29,210.2,210.07,7.58]
[1756940961186,1.56530833,210.13,210.07,7.58]
[1756940961394,8.85530833,210.13,210.07,7.58]
[1756940962293,1.56530833,210.13,210.08,0.03462102]
[1756940962586,1.56530833,210.1,210.08,0.03462102]
[1756940962793,1.56530833,210.14,210.09,7.58]
[1756940963187,8.85530833,210.12,210.09,7.61423359]
[1756940963593,8.85530833,210.12,210.09,7.58]
[1756940967393,1.56530833,210.12,210.09,7.58]
[1756940967590,7.29,210.11,210.08,7.61040705]
[1756940968695,1.56530833,210.12,210.08,7.61040705]
[1756940968999,7.29,210.11,210.08,7.61040705]
[1756940969799,7.29,210.11,210.09,7.58]
[1756940970696,7.29,210.11,210.08,0.03040705]
[1756940970697,7.29,210.11,210.08,7.61040705]
[1756940974203,7.29,210.11,210.09,7.58]
[1756940975204,7.29,210.12,210.08,0.03040705]
[1756940975406,1.56530833,210.13,210.08,7.61040705]
[1756940975704,7.29,210.12,210.08,7.61040705]
[1756940975905,1.56530833,210.13,210.08,7.61040705]
[1756940976407,7.29,210.12,210.09,7.58]
[1756940977509,1.56530833,210.13,210.09,7.58]
[1756940977905,7.29,210.12,210.09,7.58]
[1756940979106,8.85530833,210.18,210.09,9.14530833]
[1756940979307,1.56530833,210.21,210.14,7.58]
[1756940979802,1.56530833,210.21,210.15,0.03461753]
[1756940981514,7.29,210.22,210.15,0.03461753]
[1756940999720,2.44483416,210.2,210.15,0.03461753]
[1756940999927,7.34,210.19,210.15,0.03461753]
[1756941000127,2.44483416,210.2,210.15,0.03461753]
[1756941000626,7.34,210.19,210.15,0.03461753]
[1756941000822,2.44483416,210.2,210.15,0.03461753]
[1756941001023,7.34,210.19,210.15,0.03461753]
[1756941001323,115.06,210.24,210.15,0.03461753]
[1756941001527,2.44483416,210.22,210.15,0.03461753]
[1756941001727,7.34,210.21,210.15,0.03461753]
[1756941007127,2.44483416,210.16,210.15,0.03461753]
[1756941007326,9.78483416,210.16,210.15,0.03461753]
[1756941007628,9.78483416,210.16,210.05,7.74]
[1756941008630,0.0310957,210.13,210.05,7.74]
[1756941009434,0.0310957,210.13,210.08,7.74]
[1756941010328,0.0310957,210.13,210.07,2.44483416]
[1756941011132,0.0310957,210.13,210.08,7.74]
[1756941016530,0.0310957,210.13,210.07,3.94780694]
[1756941016744,0.0310957,210.13,210.08,7.84]
[1756941017441,0.0310957,210.13,210.07,11.78780694]
[1756941019044,0.0310957,210.13,210.08,7.84]
[1756941019242,0.0310957,210.13,210.07,3.94780694]
[1756941019444,0.0310957,210.13,210.08,7.84]
[1756941019744,0.0310957,210.13,210.07,3.94780694]
[1756941019938,0.0310957,210.13,210.08,7.84]
[1756941020240,0.0310957,210.13,210.07,3.94780694]
[1756941021444,0.0310957,210.13,210.08,7.84]
[1756941022245,0.0310957,210.13,210.11,7.84]
[1756941023250,0.0310957,210.13,210.1,7.84]
[1756941023442,0.0310957,210.13,210.09,3.94780694]
[1756941023643,0.0310957,210.13,210.1,7.84]
[1756941023950,0.0310957,210.13,210.09,3.94780694]
[1756941024245,0.0310957,210.13,210.1,7.84]
[1756941024652,0.0310957,210.13,210.09,3.94780694]
[1756941025754,0.0310957,210.13,210.1,7.84]
[1756941026154,0.0310957,210.13,210.09,3.94780694]
[1756941026356,0.0310957,210.13,210.1,7.84]
[1756941026955,0.0310957,210.13,210.09,7.84]
[1756941027354,0.0310957,210.13,210.08,3.94780694]
[1756941027955,0.0310957,210.13,210.09,7.84]
[1756941028156,0.0310957,210.13,210.08,3.94780694]
[1756941028348,0.0310957,210.13,210.09,7.84]
[1756941028653,0.0310957,210.13,210.08,3.94780694]
[1756941028853,0.0310957,210.13,210.09,7.84]
[1756941029052,0.0310957,210.13,210.09,11.78780694]
[1756941029254,0.0310957,210.13,210.1,7.84]
[1756941029648,0.0310957,210.13,210.09,3.94780694]
[1756941030452,0.0310957,210.13,210.1,7.84]
[1756941030651,7.6710957,210.13,210.1,7.84]
[1756941031251,7.6710957,210.13,210.06,11.78780694]
[1756941031453,7.64,210.12,210.06,7.84]
[1756941041463,1.56595337,210.11,210.03,5.51376031]
[1756941041866,1.56595337,210.11,210.04,7.84]
[1756941043164,1.56595337,210.11,210.03,5.51376031]
[1756941043165,0.0310957,210.13,210.07,1.56595337]
[1756941043368,0.0310957,210.13,210.08,7.2]
[1756941043866,0.0310957,210.13,210.07,1.56595337]
[1756941044459,0.0310957,210.13,210.08,7.2]
[1756941044863,0.0310957,210.13,210.07,1.56595337]
[1756941045766,0.0310957,210.13,210.08,7.2]
[1756941045965,0.0310957,210.13,210.07,1.56595337]
[1756941046165,0.0310957,210.13,210.08,7.2]